bitfinex-derivatives/quotes_BNBF0:USTF0_20250330
["timestamp","ask_amount","ask_price","bid_price","bid_amount"]
[1743375543100,1.741,601.26,600.37,2.55840015]
[1743375543604,1.741,601.26,600.38,0.33312235]
[1743375544404,1.741,601.26,600.38,2.8915225]
[1743375546505,1.741,601.26,600.39,2.55840015]
[1743375546705,1.741,601.26,600.4,0.33311125]
[1743375547506,0.257,601.26,600.4,0.33311125]
[1743375548503,1.211,601.27,600.4,0.33311125]
[1743375549606,1.211,601.27,600.4,2.8915114]
[1743375551004,0.255,601.26,600.4,0.33311125]
[1743375551400,1.224,601.25,600.4,0.33311125]
[1743375561218,1.467,601.24,600.4,0.33311125]
[1743375575531,0.255,601.23,600.4,0.33311125]
[1743375579233,1.396,601.22,600.4,0.33311125]
[1743375580728,1.396,601.22,600.45,2.55840015]
[1743375580929,1.396,601.22,600.46,0.33307797]
[1743375584237,1.396,601.22,600.49,2.55840015]
[1743375584432,1.396,601.22,600.5,0.33305578]
[1743375585540,1.396,601.22,600.52,2.55840015]
[1743375585742,1.396,601.22,600.53,0.33303914]
[1743375587641,1.396,601.22,600.57,2.55840015]
[1743375587840,1.396,601.22,600.58,0.33301142]
[1743375594050,0.255,601.21,600.58,0.33301142]
[1743375594542,1.332,601.2,600.58,0.33301142]
[1743375606566,2.684,601.2,600.58,0.33301142]
[1743375621274,2.939,601.2,600.58,0.33301142]
[1743375733966,2.939,601.2,599.86,2.55840015]
[1743375734172,2.939,601.2,599.88,0.33340001]
[1743375734372,2.939,601.2,600.35,0.28973079]
[1743375734572,2.939,601.2,599.88,0.33340001]
[1743375734973,2.939,601.2,600.35,0.28972838]
[1743375735169,2.939,601.2,599.88,0.33340001]
[1743375736179,2.939,601.2,599.89,0.28974647]
[1743375736380,2.939,601.2,599.91,0.33338334]
[1743375746685,2.684,601.2,599.91,0.33338334]
[1743375757896,0.30584818,601.19,599.91,0.33338334]
[1743375758098,2.684,601.2,599.91,0.33338334]
[1743375758299,0.28985145,601.21,599.91,0.33338334]
[1743375758692,0.30585094,601.2,599.91,0.33338334]
[1743375758897,0.28985145,601.21,599.91,0.33338334]
[1743375759402,0.30587211,601.2,599.91,0.33338334]
[1743375759599,0.28985145,601.21,599.91,0.33338334]
[1743375760800,1.462,601.2,599.91,0.33338334]
[1743375761199,2.953,601.2,599.91,0.33338334]
[1743375761400,0.33267353,601.19,599.91,0.33338334]
[1743375761597,0.3059473,601.18,599.91,0.33338334]
[1743375761800,0.33268459,601.17,599.91,0.33338334]
[1743375762006,1.5339251,601.17,599.91,0.33338334]
[1743375762307,0.30595003,601.16,599.91,0.33338334]
[1743375762701,8.8783676,601.16,599.91,0.33338334]
[1743375762902,7.96694113,601.15,599.91,0.33338334]
[1743375763098,7.67712709,601.14,599.91,0.33338334]
[1743375763305,7.67712709,601.13,599.91,0.33338334]
[1743375763501,2.89472608,601.12,599.91,0.33338334]
[1743375763709,2.39521592,601.12,599.91,0.33338334]
[1743375764006,1.20124051,601.11,599.91,0.33338334]
[1743375764209,2.1224774,601.11,599.91,0.33338334]
[1743375764408,8.07290741,601.11,599.91,0.33338334]
[1743375764708,6.8716669,601.1,599.91,0.33338334]
[1743375764908,6.20565335,601.09,599.91,0.33338334]
[1743375765110,2.38678975,601.08,599.91,0.33338334]
[1743375765304,2.1224774,601.1,599.91,0.33338334]
[1743375765705,0.92123689,601.1,599.91,0.33338334]
[1743375765905,2.38678975,601.13,599.91,0.33338334]
[1743375766405,0.28993235,601.09,599.91,0.33338334]
[1743375768604,1.20948915,601.09,599.91,0.33338334]
[1743375768809,1.46555286,601.09,599.91,0.33338334]
[1743375769006,0.28979352,601.08,599.91,0.33338334]
[1743375769404,3.11230657,601.1,599.91,0.33338334]
[1743375770011,1.46315956,601.14,599.91,0.33338334]
[1743375770311,0.33268459,601.17,599.91,0.33338334]
[1743375770512,0.30583962,601.16,599.91,0.33338334]
[1743375772310,2.688704,601.16,599.91,0.33338334]
[1743375772511,0.30583962,601.15,599.91,0.33338334]
[1743375772807,3.58410489,601.16,599.91,0.33338334]
[1743375773004,1.76901504,601.15,599.91,0.33338334]
[1743375773209,2.12094533,601.16,599.91,0.33338334]
[1743375773408,0.30586147,601.15,599.91,0.33338334]
[1743375773611,1.20124051,601.16,599.91,0.33338334]
[1743375773810,0.30589366,601.15,599.91,0.33338334]
[1743375774011,0.30589366,601.14,599.91,0.33338334]
[1743375774308,0.30589366,601.13,599.91,0.33338334]
[1743375774513,0.30589366,601.12,599.91,0.33338334]
[1743375774704,6.19926219,601.15,599.91,0.33338334]
[1743375774910,6.50516298,601.14,599.91,0.33338334]
[1743375775210,0.28979352,601.11,599.91,0.33338334]
[1743375775606,2.68294393,601.11,599.91,0.33338334]
[1743375776206,1.20124051,601.1,599.91,0.33338334]
[1743375776411,3.59439092,601.1,599.91,0.33338334]
[1743375776611,7.40091057,601.1,599.91,0.33338334]
[1743375776812,6.19967006,601.09,599.91,0.33338334]
[1743375777012,6.19967006,601.08,599.91,0.33338334]
[1743375777211,4.72622447,601.07,599.91,0.33338334]
[1743375777412,4.72622447,601.06,599.91,0.33338334]
[1743375777605,4.72622447,601.05,599.91,0.33338334]
[1743375777806,2.38782772,601.04,599.91,0.33338334]
[1743375778007,2.38782772,601.05,599.91,0.33338334]
[1743375778507,0.92163725,601.05,599.91,0.33338334]
[1743375778711,2.12287776,601.1,599.91,0.33338334]
[1743375779008,1.20124051,601.1,599.91,0.33338334]
[1743375779813,0.28979352,601.11,599.91,0.33338334]
[1743375780613,2.68778902,601.11,599.91,0.33338334]
[1743375780814,0.92230596,601.11,599.91,0.33338334]
[1743375781015,0.28980559,601.1,599.91,0.33338334]
[1743375781517,1.21211155,601.1,599.91,0.33338334]
[1743375781713,2.6793702,601.1,599.91,0.33338334]
[1743375781918,2.38956461,601.1,599.91,0.33338334]
[1743375782316,0.28977904,601.14,599.91,0.33338334]
[1743375783716,4.74159056,601.16,599.91,0.33338334]
[1743375783913,0.9232084,601.15,599.91,0.33338334]
[1743375784116,0.2897706,601.14,599.91,0.33338334]
[1743375787017,0.30593089,601.13,599.91,0.33338334]
[1743375787226,1.87593089,601.13,599.91,0.33338334]
[1743375787517,0.30593089,601.12,599.91,0.33338334]
[1743375787817,1.47013488,601.11,599.91,0.33338334]
[1743375788022,1.77617035,601.1,599.91,0.33338334]
[1743375788218,0.30603547,601.09,599.91,0.33338334]
[1743375788419,0.33273441,601.08,599.91,0.33338334]
[1743375788615,0.30603425,601.07,599.91,0.33338334]
[1743375788815,1.50727476,601.07,599.91,0.33338334]
[1743375789018,0.30603425,601.06,599.91,0.33338334]
[1743375789217,0.63877973,601.06,599.91,0.33338334]
[1743375789417,0.30603425,601.05,599.91,0.33338334]
[1743375789622,0.33275655,601.04,599.91,0.33338334]
[1743375789824,0.30603425,601.03,599.91,0.33338334]
[1743375790219,0.28986352,601.03,599.91,0.33338334]
[1743375790620,0.63880414,601.02,599.91,0.33338334]
[1743375790822,0.63880968,601.01,599.91,0.33338334]
[1743375791123,0.63881522,601.0,599.91,0.33338334]
[1743375791425,0.63882075,600.99,599.91,0.33338334]
[1743375791719,0.63882629,600.98,599.91,0.33338334]
[1743375791918,0.33278977,600.98,599.91,0.33338334]
[1743375792123,0.30605217,600.97,599.91,0.33338334]
[1743375792619,0.33278977,600.98,599.91,0.33338334]
[1743375793018,0.30604925,600.97,599.91,0.33338334]
[1743375793323,0.59593813,600.97,599.91,0.33338334]
[1743375793515,0.28988888,600.97,599.91,0.33338334]
[1743375794621,1.76002376,600.97,599.91,0.33338334]
[1743375794822,0.28988888,600.97,599.91,0.33338334]
[1743375795722,1.20124051,600.97,599.91,0.33338334]
[1743375796124,0.28985024,600.96,599.91,0.33338334]
[1743375797326,0.33278977,600.98,599.91,0.33338334]
[1743375803327,2.40112331,601.14,599.91,0.33338334]
[1743375803529,0.28980076,601.11,599.91,0.33338334]
[1743375804632,2.77080434,601.13,599.91,0.33338334]
[1743375804835,1.57,601.13,599.91,0.33338334]
[1743375822648,1.594,601.12,599.91,0.33338334]
[1743375850869,1.396,601.11,599.91,0.33338334]
[1743375854375,1.396,601.11,599.95,2.55840015]
[1743375854673,1.396,601.11,599.97,0.33335]
[1743375855870,1.396,601.11,600.01,2.55840015]
[1743375856069,1.396,601.11,600.03,0.33331666]
[1743375856473,1.187,601.1,600.03,0.33331666]
[1743375864977,3.59378309,601.1,600.03,0.33331666]
[1743375865276,4.79255219,601.1,600.03,0.33331666]
[1743375865473,2.40678309,601.09,600.03,0.33331666]
[1743375866080,1.4778048,601.09,600.03,0.33331666]
[1743375866280,1.1987691,601.09,600.03,0.33331666]
[1743375866682,2.40650497,601.09,600.03,0.33331666]
[1743375867578,3.60527407,601.09,600.03,0.33331666]
[1743375868981,0.2898756,601.08,600.03,0.33331666]
[1743375869686,2.69638057,601.08,600.03,0.33331666]
[1743375869883,5.05894478,601.08,600.03,0.33331666]
[1743375870083,6.25426232,601.07,600.03,0.33331666]
[1743375870285,6.25426232,601.06,600.03,0.33331666]
[1743375870479,6.55760431,601.05,600.03,0.33331666]
[1743375870683,6.55760431,601.04,600.03,0.33331666]
[1743375870882,6.2516159,601.03,600.03,0.33331666]
[1743375871086,7.89096059,601.02,600.03,0.33331666]
[1743375871387,2.4048988,601.01,600.03,0.33331666]
[1743375871979,0.28990699,601.0,600.03,0.33331666]
[1743375872584,0.30601055,600.99,600.03,0.33331666]
[1743375873482,0.63886959,600.98,599.32,2.55840015]
[1743375873688,0.63887513,600.97,599.34,0.3337004]
[1743375873987,0.63888067,600.96,599.79,0.2899553]
[1743375874181,0.30607982,600.95,599.34,0.3337004]
[1743375874778,0.30607982,600.95,599.35,0.28997584]
[1743375874980,0.28997584,600.94,599.35,0.28997584]
[1743375875182,0.30607982,600.93,599.37,0.3336837]
[1743375875593,0.332823,600.92,599.37,0.3336837]
[1743375875789,0.30607982,600.91,599.37,0.3336837]
[1743375875991,0.33283408,600.9,599.37,0.3336837]
[1743375876193,1.78227845,600.89,599.37,0.3336837]
[1743375876493,1.65389609,600.85,599.37,0.3336837]
[1743375876787,1.65389609,600.81,599.37,0.3336837]
[1743375876989,0.6389693,600.8,599.37,0.3336837]
[1743375877285,2.11517347,600.79,599.37,0.3336837]
[1743375877490,1.65170952,600.76,599.37,0.3336837]
[1743375877693,0.30607982,600.75,599.37,0.3336837]
[1743375878191,1.1987691,600.74,599.37,0.3336837]
[1743375878391,0.30607982,600.73,599.37,0.3336837]
[1743375878593,1.1987691,600.74,599.37,0.3336837]
[1743375878794,0.30618307,600.73,599.37,0.3336837]
[1743375878992,1.1987691,600.72,599.37,0.3336837]
[1743375879193,0.30618307,600.71,599.37,0.3336837]
[1743375879493,1.50495217,600.71,599.37,0.3336837]
[1743375879688,0.30618307,600.7,599.37,0.3336837]
[1743375880192,2.70847111,600.7,599.37,0.3336837]
[1743375880392,0.30613079,600.69,599.37,0.3336837]
[1743375880787,0.30613079,600.68,599.37,0.3336837]
[1743375881184,1.51882533,600.68,599.37,0.3336837]
[1743375881387,0.30613079,600.67,599.37,0.3336837]
[1743375881593,0.30612817,600.66,599.37,0.3336837]
[1743375881793,0.30612817,600.67,599.37,0.3336837]
[1743375881993,0.30612817,600.66,599.37,0.3336837]
[1743375882294,1.2287115,600.67,599.37,0.3336837]
[1743375882494,0.30612817,600.66,599.37,0.3336837]
[1743375883296,4.04599214,600.67,599.37,0.3336837]
[1743375883492,4.11790567,600.66,599.37,0.3336837]
[1743375883700,0.92184817,600.65,599.37,0.3336837]
[1743375883997,0.30613627,600.64,599.37,0.3336837]
[1743375884195,1.22798444,600.64,599.37,0.3336837]
[1743375884397,0.30613627,600.63,599.37,0.3336837]
[1743375884699,0.3061549,600.62,599.37,0.3336837]
[1743375885398,1.22800307,600.62,599.37,0.3336837]
[1743375885696,0.3061549,600.61,599.37,0.3336837]
[1743375885900,1.22800307,600.61,599.37,0.3336837]
[1743375886099,0.3061549,600.6,599.37,0.3336837]
[1743375886298,0.92184817,600.6,599.37,0.3336837]
[1743375886603,2.38817303,600.6,599.37,0.3336837]
[1743375886900,1.64308446,600.81,599.37,0.3336837]
[1743375886901,0.29013298,600.65,599.37,0.3336837]
[1743375887098,0.3061494,600.64,599.37,0.3336837]
[1743375887295,0.29013298,600.65,599.37,0.3336837]
[1743375887497,0.30614868,600.64,599.37,0.3336837]
[1743375890003,0.29001692,600.65,599.37,0.3336837]
[1743375890599,2.32108242,600.64,599.37,0.3336837]
[1743375891307,2.96366196,600.63,599.37,0.3336837]
[1743375891509,1.77057954,600.62,599.37,0.3336837]
[1743375891703,1.77057954,600.61,599.37,0.3336837]
[1743375892005,1.77057954,600.6,599.37,0.3336837]
[1743375892210,1.19308242,600.61,599.37,0.3336837]
[1743375892211,2.96366196,600.59,599.37,0.3336837]
[1743375892404,1.77057954,600.58,599.37,0.3336837]
[1743375892609,1.46437968,600.57,599.37,0.3336837]
[1743375893108,1.46437968,600.56,599.37,0.3336837]
[1743375893309,1.46437968,600.55,599.37,0.3336837]
[1743375893610,1.7706157,600.54,599.37,0.3336837]
[1743375893811,1.7706157,600.53,599.37,0.3336837]
[1743375894006,1.7706157,600.52,599.37,0.3336837]
[1743375894205,3.41186909,600.51,599.37,0.3336837]
[1743375894406,2.69115922,600.5,599.37,0.3336837]
[1743375894605,0.30623602,600.49,599.37,0.3336837]
[1743375894811,6.50703635,600.5,599.37,0.3336837]
[1743375895009,1.19308242,600.48,599.37,0.3336837]
[1743375895707,2.3849232,600.49,599.37,0.3336837]
[1743375895922,1.19308242,600.56,599.37,0.3336837]
[1743375896213,0.30618286,600.55,599.37,0.3336837]
[1743375896413,1.49926528,600.55,599.37,0.3336837]
[1743375896613,0.30618286,600.54,599.37,0.3336837]
[1743375897315,1.49926528,600.54,599.37,0.3336837]
[1743375897615,1.19308242,600.54,599.37,0.3336837]
[1743375898110,1.52079756,600.53,599.37,0.3336837]
[1743375898415,2.98517724,600.53,599.37,0.3336837]
[1743375898616,1.52079756,600.53,599.37,0.3336837]
[1743375901713,7.00335111,600.53,599.37,0.3336837]
[1743375901917,2.38282961,600.52,599.37,0.3336837]
[1743375902313,5.48255355,600.52,599.37,0.3336837]
[1743375902512,2.38282961,600.51,599.37,0.3336837]
[1743375902917,4.72438268,600.51,599.37,0.3336837]
[1743375903120,2.38282961,600.5,599.37,0.3336837]
[1743375903320,3.09972394,600.5,599.37,0.3336837]
[1743375903517,4.01941628,600.5,599.37,0.3336837]
[1743375903717,4.72485795,600.49,599.37,0.3336837]
[1743375904020,2.698451,600.48,599.37,0.3336837]
[1743375904218,0.91969234,600.48,599.37,0.3336837]
[1743375904416,3.76633222,600.48,599.37,0.3336837]
[1743375904624,2.38282961,600.47,599.37,0.3336837]
[1743375904825,0.91969234,600.47,599.37,0.3336837]
[1743375905024,4.72485795,600.47,599.37,0.3336837]
[1743375905224,0.91969234,600.46,599.37,0.3336837]
[1743375905426,0.30623448,600.45,599.37,0.3336837]
[1743375905821,2.69109361,600.46,599.37,0.3336837]
[1743375906019,2.38485913,600.46,599.37,0.3336837]
[1743375906828,6.20066841,600.51,599.37,0.3336837]
[1743375907126,2.98991663,600.5,599.37,0.3336837]
[1743375907326,0.30622315,600.49,599.37,0.3336837]
[1743375907824,1.22681747,600.49,599.37,0.3336837]
[1743375908023,0.30622315,600.48,599.37,0.3336837]
[1743375908220,0.92059432,600.48,599.37,0.3336837]
[1743375908624,4.72771108,600.48,599.37,0.3336837]
[1743375908826,0.92059432,600.47,599.37,0.3336837]
[1743375909027,0.30623534,600.46,599.37,0.3336837]
[1743375909223,1.22682966,600.46,599.37,0.3336837]
[1743375909430,0.92059432,600.46,599.37,0.3336837]
[1743375909628,4.02031826,600.46,599.37,0.3336837]
[1743375909824,1.46426481,600.45,599.37,0.3336837]
[1743375910024,4.72789096,600.45,599.37,0.3336837]
[1743375910224,2.38485913,600.44,599.37,0.3336837]
[1743375910428,3.09972394,600.44,599.37,0.3336837]
[1743375910628,5.48458307,600.44,599.37,0.3336837]
[1743375910825,2.38485913,600.43,599.37,0.3336837]
[1743375911431,1.75434095,600.5,599.37,0.3336837]
[1743375911633,0.30623345,600.49,599.37,0.3336837]
[1743375912331,1.22682777,600.49,599.37,0.3336837]
[1743375912532,0.30623345,600.48,599.37,0.3336837]
[1743375912723,1.22682777,600.48,599.37,0.3336837]
[1743375912926,0.92059432,600.48,599.37,0.3336837]
[1743375913125,2.38485913,600.48,599.37,0.3336837]
[1743375913530,4.72964244,600.48,599.37,0.3336837]
[1743375913833,5.0358672,600.47,599.37,0.3336837]
[1743375914132,2.69108389,600.46,599.37,0.3336837]
[1743375914336,3.09972394,600.46,599.37,0.3336837]
[1743375914531,4.02031826,600.46,599.37,0.3336837]
[1743375914732,2.38485913,600.45,599.37,0.3336837]
[1743375915328,0.29014507,600.47,599.37,0.3336837]
[1743375915530,0.30622889,600.46,599.37,0.3336837]
[1743375916332,2.6939441,600.46,599.37,0.3336837]
[1743375916527,0.30622889,600.45,599.37,0.3336837]
[1743375916932,1.22682321,600.45,599.37,0.3336837]
[1743375917132,0.30622889,600.44,599.37,0.3336837]
[1743375917534,0.30622889,600.46,599.37,0.3336837]
[1743375917732,0.29014507,600.47,599.37,0.3336837]
[1743375917936,0.30623222,600.46,599.37,0.3336837]
[1743375918536,0.29014507,600.47,599.37,0.3336837]
[1743375918938,2.38771521,600.48,599.37,0.3336837]
[1743375919633,2.38771521,600.6,599.37,0.3336837]
[1743375919832,0.30623368,600.59,599.37,0.3336837]
[1743375920032,0.29013056,600.47,599.37,0.3336837]
[1743375920431,2.39971651,600.57,599.37,0.3336837]
[1743375920630,0.30624377,600.56,599.37,0.3336837]
[1743375921339,2.70596028,600.56,599.37,0.3336837]
[1743375921638,0.30624377,600.55,599.37,0.3336837]
[1743375921840,1.22683809,600.55,599.37,0.3336837]
[1743375922040,0.30624377,600.54,599.37,0.3336837]
[1743375922238,2.40540932,600.54,599.37,0.3336837]
[1743375922442,0.30625354,600.53,599.37,0.3336837]
[1743375922639,2.71166286,600.53,599.37,0.3336837]
[1743375922844,0.30625354,600.52,599.37,0.3336837]
[1743375923146,2.71166286,600.52,599.37,0.3336837]
[1743375923341,0.30625354,600.51,599.37,0.3336837]
[1743375923539,1.23141097,600.51,599.37,0.3336837]
[1743375923745,0.30625354,600.5,599.37,0.3336837]
[1743375923940,2.53941097,600.5,599.37,0.3336837]
[1743375924145,0.30625354,600.49,599.37,0.3336837]
[1743375924339,2.71338455,600.49,599.37,0.3336837]
[1743375924543,0.30625354,600.48,599.37,0.3336837]
[1743375925046,5.81310849,600.48,599.37,0.3336837]
[1743375925245,7.39985844,600.47,599.37,0.3336837]
[1743375925444,2.71338455,600.46,599.37,0.3336837]
[1743375925641,0.30625354,600.45,599.37,0.3336837]
[1743375926248,1.77776437,600.45,599.37,0.3336837]
[1743375926445,0.30625354,600.44,599.37,0.3336837]
[1743375927050,1.52617703,600.43,599.37,0.3336837]
[1743375927241,0.6393537,600.42,599.37,0.3336837]
[1743375927445,0.63935925,600.41,599.37,0.3336837]
[1743375927645,0.63936479,600.4,599.37,0.3336837]
[1743375927845,0.63937034,600.39,599.37,0.3336837]
[1743375928149,0.63937589,600.38,599.37,0.3336837]
[1743375928349,0.30625354,600.37,599.37,0.3336837]
[1743375928940,0.33313345,600.36,599.37,0.3336837]
[1743375929146,0.30625354,600.35,599.37,0.3336837]
[1743375929448,0.63939254,600.35,599.37,0.3336837]
[1743375929646,0.30625354,600.34,599.37,0.3336837]
[1743375930443,0.30625354,600.34,599.18,0.29024308]
[1743375930647,0.3331501,600.33,599.18,0.29024308]
[1743375930848,0.30625354,600.32,598.55,2.55840015]
[1743375931045,0.92969222,600.32,599.15,0.29028303]
[1743375931245,0.30640231,600.31,599.15,0.29028303]
[1743375931548,0.30640231,600.31,598.57,0.33412967]
[1743375931742,3.21359877,600.31,598.57,0.33412967]
[1743375931943,0.30640231,600.3,598.57,0.33412967]
[1743375932145,4.68907487,600.3,598.57,0.33412967]
[1743375932345,0.30640231,600.29,598.57,0.33412967]
[1743375932550,2.71353332,600.29,598.57,0.33412967]
[1743375932746,0.30640231,600.28,598.57,0.33412967]
[1743375932947,6.91035017,600.29,598.57,0.33412967]
[1743375933144,2.71351781,600.28,598.58,0.29029392]
[1743375933346,0.3063868,600.27,598.6,0.33411293]
[1743375933749,2.71351781,600.27,598.6,0.33411293]
[1743375933944,0.3063868,600.26,598.6,0.33411293]
[1743375934150,3.00944165,600.26,598.6,0.33411293]
[1743375934348,0.3063868,600.25,598.6,0.33411293]
[1743375934547,2.71915257,600.25,598.6,0.33411293]
[1743375934949,0.30640744,600.24,598.6,0.33411293]
[1743375935150,2.70839427,600.24,598.6,0.33411293]
[1743375935344,0.30640744,600.23,598.6,0.33411293]
[1743375935548,7.22239237,600.23,598.6,0.33411293]
[1743375935749,7.22239237,600.22,598.6,0.33411293]
[1743375935950,7.22239237,600.21,598.6,0.33411293]
[1743375936147,7.22245569,600.2,598.6,2.89251308]
[1743375936345,6.55541107,600.19,598.6,2.89251308]
[1743375936545,6.55541107,600.18,598.6,2.89251308]
[1743375936747,5.07063213,600.17,598.6,2.89251308]
[1743375936946,5.07063213,600.16,598.6,2.89251308]
[1743375937149,5.07063213,600.15,598.6,2.89251308]
[1743375937353,2.70987037,600.14,598.6,2.89251308]
[1743375937556,0.30640744,600.13,598.6,0.33411293]
[1743375937857,0.30640744,600.12,598.6,0.33411293]
[1743375938151,0.30640744,600.11,598.6,0.33411293]
[1743375938652,0.30644788,600.1,598.6,0.33411293]
[1743375939052,0.30644788,600.09,598.6,0.33411293]
[1743375939350,0.30644788,600.08,598.6,0.33411293]
[1743375939552,2.40144163,600.09,598.6,0.33411293]
[1743375939754,3.09972394,600.09,598.6,0.33411293]
[1743375939951,5.50116557,600.09,598.6,0.33411293]
[1743375940254,1.76472486,600.08,598.6,0.33411293]
[1743375940858,0.29033267,600.08,598.6,0.33411293]
[1743375942958,6.24064883,600.16,598.6,0.33411293]
[1743375943159,4.75835526,600.15,598.6,0.33411293]
[1743375943362,2.40846492,600.14,598.6,0.33411293]
[1743375944056,0.29036053,600.13,598.6,0.33411293]
[1743375944261,2.69875413,600.13,598.6,0.33411293]
[1743375944456,6.52909928,600.13,598.6,0.33411293]
[1743375944659,2.40812758,600.12,598.6,0.33411293]
[1743375945863,5.50785152,600.12,598.6,0.33411293]
[1743375946061,3.83034515,600.11,598.6,0.33411293]
[1743375946357,2.40812758,600.1,598.6,0.33411293]
[1743375946563,7.43155515,600.1,598.6,0.33411293]
[1743375946764,4.75665038,600.09,598.6,0.33411293]
[1743375947057,4.75665038,600.08,598.6,0.33411293]
[1743375947265,4.75665038,600.07,598.6,0.33411293]
[1743375947558,0.92630523,600.06,598.6,0.33411293]
[1743375947859,4.02602917,600.06,598.6,0.33411293]
[1743375948058,1.47320967,600.05,598.6,0.33411293]
[1743375948263,2.3995149,600.05,598.6,0.33411293]
[1743375949267,6.23600976,600.09,598.6,0.33411293]
[1743375949466,2.40734548,600.08,598.6,0.33411293]
[1743375949667,5.50706942,600.08,598.6,0.33411293]
[1743375949967,3.82866428,600.07,598.6,0.33411293]
[1743375950167,3.82866428,600.06,598.6,0.33411293]
[1743375950365,6.2354393,600.05,598.6,0.33411293]
[1743375950563,6.2354393,600.04,598.6,0.33411293]
[1743375950765,6.2354393,600.03,598.6,0.33411293]
[1743375950964,4.75434698,600.02,598.6,0.33411293]
[1743375951166,4.75434698,600.01,598.6,0.33411293]
[1743375951366,4.75434698,600.0,598.6,0.33411293]
[1743375951662,2.39889237,599.99,598.6,0.33411293]
[1743375952067,1.47320967,599.99,598.6,0.33411293]
[1743375952266,3.09972394,600.0,598.6,0.33411293]
[1743375952463,4.75293615,600.09,598.6,0.33411293]
[1743375952666,2.39846733,600.08,598.6,0.33411293]
[1743375952869,1.47320967,600.1,598.6,0.33411293]
[1743375953067,0.92525766,600.1,598.6,0.33411293]
[1743375953264,3.09972394,600.1,598.6,0.33411293]
[1743375954166,1.97337386,600.11,598.6,0.33411293]
[1743375954772,1.683,600.11,598.6,0.33411293]
[1743375963473,1.3,600.1,598.6,0.33411293]
[1743375967383,1.3,600.1,598.6,2.89251308]
[1743375969587,1.3,600.1,598.6,0.33411293]
[1743375973988,1.3,600.1,598.61,2.55840015]
[1743375974187,1.3,600.1,598.63,0.33409618]
[1743375975391,1.3,600.1,598.63,2.89249633]
[1743375976694,1.3,600.1,598.64,2.55840015]
[1743375976890,1.3,600.1,598.66,0.33407944]
[1743375977898,1.3,600.1,598.69,2.55840015]
[1743375978101,1.3,600.1,598.71,0.33405154]
[1743375979202,1.667,600.09,598.71,0.33405154]
[1743375979400,1.667,600.09,598.71,2.89245169]
[1743375980801,1.667,600.09,598.85,2.55840015]
[1743375981100,1.667,600.09,598.87,0.33396229]
[1743375984606,1.587,600.08,598.87,0.33396229]
[1743375986209,1.587,600.08,598.89,2.55840015]
[1743375986409,1.587,600.08,598.91,0.33393999]
[1743375987611,1.587,600.08,598.95,2.55840015]
[1743375987813,1.587,600.08,598.96,0.33391211]
[1743375989509,1.587,600.08,599.0,2.55840015]
[1743375989910,1.587,600.08,599.01,0.33388424]
[1743375990714,1.587,600.08,599.03,2.55840015]
[1743375990919,1.587,600.08,599.04,0.33386752]
[1743375994014,1.587,600.08,599.15,2.55840015]
[1743375994608,1.587,600.08,599.16,0.33380065]
[1743376023545,2.717,600.08,599.16,0.33380065]
[1743376094884,2.717,600.08,599.15,0.29034963]
[1743376098882,2.717,600.08,598.69,2.55840015]
[1743376099688,2.717,600.08,598.55,2.55840015]
[1743376100182,2.717,600.08,598.56,0.29024913]
[1743376100686,2.717,600.08,598.56,2.84864928]
[1743376101882,2.717,600.08,598.69,2.55840015]
[1743376102882,2.717,600.08,598.8,2.55840015]
[1743376104090,2.717,600.08,598.78,2.55840015]
[1743376105288,2.717,600.08,598.82,2.55840015]
[1743376106892,2.717,600.08,598.87,2.55840015]
[1743376108892,2.717,600.08,598.86,2.55840015]
[1743376111092,2.717,600.08,598.63,2.55840015]
[1743376112089,2.717,600.08,598.64,0.29025639]
[1743376112293,2.717,600.08,598.64,2.84865654]
[1743376113990,2.717,600.08,598.64,2.55840015]
[1743376114994,2.717,600.08,597.96,2.53775722]
[1743376114995,2.717,600.08,598.68,2.55840015]
[1743376116699,2.717,600.08,598.64,0.29022855]
[1743376116898,2.717,600.08,598.62,2.55840015]
[1743376117599,2.717,600.08,598.63,0.29019709]
[1743376117800,2.717,600.08,598.95,2.55840015]
[1743376119805,2.717,600.08,599.1,2.55840015]
[1743376123005,2.717,600.08,599.26,2.55840015]
[1743376124207,2.717,600.08,599.23,2.55840015]
[1743376127911,2.717,600.08,599.18,2.55840015]
[1743376128907,2.717,600.08,599.2,0.33377837]
[1743376200179,2.717,600.08,599.26,2.55840015]
[1743376200373,2.717,600.08,599.28,0.33373381]
[1743376219694,2.717,600.08,599.39,2.55840015]
[1743376219896,2.717,600.08,599.4,0.333667]
[1743376221699,2.717,600.08,599.5,2.55840015]
[1743376221899,2.717,600.08,599.51,0.33360577]
[1743376227101,2.717,600.08,599.62,2.55840015]
[1743376227301,2.717,600.08,599.63,0.33353901]
[1743376228599,2.717,600.08,599.74,2.55840015]
[1743376228798,1.472078,601.21,599.75,0.33347228]
[1743376228998,3.11887701,601.22,599.75,0.33347228]
[1743376229201,0.30587151,601.21,599.75,0.33347228]